{"text_format":"1","workbook":"xlsx","n_sheets":3,"sheets":["Sprawozdanie kwartalne","Informacja Art. 6 ust. 1 ","Informacja Art. 6 ust. 2"],"not_rendered":{"charts":0,"images":0,"macros":1,"external_links":0,"defined_names":3,"comments":0,"pivot_tables":0},"unopened":[],"bounds":{"document_bytes":16777216,"sheet_cells":100000,"rows_first":2000,"rows_last":500,"rows_between":2000,"halvings":0,"cell_chars":16384,"cell_head_chars":4096},"cells_cut":0,"cells_raw":0,"read":"whole","date_system":"1900"}

{"sheet":"Sprawozdanie kwartalne","index":0,"n_rows":39,"n_cols":8,"rows_kept":39,"cut":false,"hidden":false,"merged":[[38,2,38,4],[36,3,36,4],[37,3,37,4],[28,2,28,4],[34,3,34,4],[35,3,35,4],[31,3,31,4],[29,2,29,4],[30,3,30,4],[32,3,32,4],[33,3,33,4],[0,0,0,6],[1,0,1,6],[20,0,20,3],[20,4,20,6],[21,0,21,3],[21,4,21,6],[3,0,3,3],[3,4,3,6],[4,0,4,3],[4,4,4,6]]}
["Sprawozdanie kwartalne operatora systemu dystrybucyjnego elektroenergetycznego"]
["za … kwartał 20 … r."]
[]
["Nazwa operatora systemu dystrybucyjnego elektroenergetycznego"]
["Siedziba operatora systemu dystrybucyjnego elektroenergetycznego"]
[]
["Lp.","Oznaczenie wytwórcy energii elektrycznej w mikroinstalacji 1)","Termin wytworzenia po raz pierwszy energii elektrycznej w mikroinstalacji","Rodzaj mikroinstalacji 2)","Zainstalowana moc elektryczna mikroinstalacji przyłączonej do sieci (kW)","Ilość energii elektrycznej wytworzonej w mikroinstalacji (kWh)3)","Łączna ilość energii elektrycznej sprzedanej sprzedawcy zobowiązanemu, która została wytworzona w mikroinstalacji i wprowadzona do sieci dystrybucyjnej (kWh)3)","OSD"]
[null,1,2,3,4,5,6]
[1,null,null,null,null,null,null,{"$f":" IF(B9=0, \"\",$E$4)","v":""}]
[2,null,null,null,null,null,null,{"$f":" IF(B10=0, \"\",$E$4)","v":""}]
[3,null,null,null,null,null,null,""]
[4,null,null,null,null,null,null,""]
[5,null,null,null,null,null,null,""]
[6,null,null,null,null,null,null,""]
[7,null,null,null,null,null,null,""]
[8,null,null,null,null,null,null,""]
[9,null,null,null,null,null,null,""]
[10]
["Razem",null,null,null,{"$f":" SUM(E9:E18)","v":0},{"$f":" SUM(F9:F18)","v":0},0,""]
[]
[]
["miejsce i data sporządzenia sprawozdania",null,null,null,"podpis osoby upoważnionej do reprezentowania operatora systemu dystrybucyjnego elektroenergetycznego ze wskazaniem imienia i nazwiska oraz zajmowanego stanowiska"]
[]
[]
[]
[null,null,null,null,null,null,"Imię i nazwisko osoby bezpośrednio sporządzającej sprawozdanie:"]
[null,null,null,null,null,null,"nr tel. :"]
[null,null,null,null,null,null,"e-mail:"]
[null,null,"1) Należy podać imię i nazwisko osoby fizycznej albo nazwę przedsiębiorcy"]
[null,null,"2) Należy podać kod literowy odpowiadający danemu rodzajowi mikroinstalacji wykorzystującej do wytwarzania energii elektrycznej:"]
[null,null,"Kod literowy","Typ źródła OZE"]
[null,null,"WO","hydroenergię"]
[null,null,"WI","energię wiatru"]
[null,null,"GE","energię geotermalną"]
[null,null,"PV","energię promieniowania słonecznego"]
[null,null,"BG","biogaz inny niż biogaz rolniczy"]
[null,null,"BM","biomasę"]
[null,null,"BP","mieszanki biopłynów z innymi paliwami"]
[null,null,"3) Należy podać dane zebrane na podstawie informacji przekazanej przez wytwórcę energii elektrycznej w mikroinstalacji zgodnie z art. 5 ust. 2 pkt 3 ustawy z dnia 20 lutego 2015 r. o odnawialnych źródłach energii.\n"]

{"sheet":"Informacja Art. 6 ust. 1 ","index":1,"n_rows":44,"n_cols":8,"rows_kept":44,"cut":false,"hidden":false,"merged":[[36,3,36,4],[37,3,37,4],[38,2,38,4],[30,3,30,4],[31,3,31,4],[32,3,32,4],[33,3,33,4],[34,3,34,4],[35,3,35,4],[29,2,29,4],[0,0,0,6],[3,0,3,3],[3,4,3,6],[4,0,4,3],[4,4,4,6],[20,0,20,3],[20,4,20,6],[21,0,21,3],[21,4,21,6],[28,2,28,4],[1,0,1,1],[1,2,1,3],[1,5,1,6]]}
["Informacja operatora systemu dystrybucyjnego elektroenergetycznego o wytwórcach energii elektrycznej z odnawialnych źródeł energii w mikroinstalacji przyłączonych do jego sieci"]
["za okres od:",null,null,null,"do:"]
[]
["Nazwa operatora systemu dystrybucyjnego elektroenergetycznego"]
["Siedziba operatora systemu dystrybucyjnego elektroenergetycznego"]
[]
["Lp.","Oznaczenie wytwórcy energii elektrycznej w mikroinstalacji 1)","Lokazlizacja mikroinstalacji","Rodzaj mikroinstalacji 2)","Zainstalowana moc elektryczna mikroinstalacji przyłączonej do sieci (kW)","Podstawa przyłączenia mikroinstalacji do sieci dystrybucyjnej","Data przyłączenia mikroinstalacji do sieci dystrybucyjnej/data zgłoszenia przyłączenia do sieci dystrybucyjnej","OSD"]
[null,1,2,3,4,5,6]
[1,null,null,null,null,null,null,{"$f":" IF(B9=0, \"\",$E$4)","v":""}]
[2,null,null,null,null,null,null,{"$f":" IF(B10=0, \"\",$E$4)","v":""}]
[3,null,null,null,null,null,null,""]
[4,null,null,null,null,null,null,""]
[5,null,null,null,null,null,null,""]
[6,null,null,null,null,null,null,""]
[7,null,null,null,null,null,null,""]
[8,null,null,null,null,null,null,""]
[9,null,null,null,null,null,null,""]
[10]
["Razem",null,null,null,{"$f":" SUM(E9:E18)","v":0},null,null,""]
[]
[]
["miejsce i data sporządzenia informacji",null,null,null,"podpis osoby upoważnionej do reprezentowania operatora systemu dystrybucyjnego elektroenergetycznego ze wskazaniem imienia i nazwiska oraz zajmowanego stanowiska"]
[]
[]
[]
[null,null,null,null,null,null,"Imię i nazwisko osoby bezpośrednio sporządzającej sprawozdanie:"]
[null,null,null,null,null,null,"nr tel. :"]
[null,null,null,null,null,null,"e-mail:"]
[null,null,"1) Należy podać imię i nazwisko osoby fizycznej albo nazwę przedsiębiorcy"]
[null,null,"2) Należy podać kod literowy odpowiadający danemu rodzajowi mikroinstalacji wykorzystującej do wytwarzania energii elektrycznej:"]
[null,null,"Kod literowy","Typ źródła OZE"]
[null,null,"WO","hydroenergię"]
[null,null,"WI","energię wiatru"]
[null,null,"GE","energię geotermalną"]
[null,null,"PV","energię promieniowania słonecznego"]
[null,null,"BG","biogaz inny niż biogaz rolniczy"]
[null,null,"BM","biomasę"]
[null,null,"BP","mieszanki biopłynów z innymi paliwami"]
[]
[]
[]
[]
[null,null,"Umowa o przyłączenie"]
[null,null,"Zgłoszenie właściciela"]

{"sheet":"Informacja Art. 6 ust. 2","index":2,"n_rows":38,"n_cols":9,"rows_kept":38,"cut":false,"hidden":false,"merged":[[0,0,0,7],[3,0,3,3],[4,0,4,3],[1,5,1,7],[1,0,1,1],[1,2,1,3],[3,4,3,7],[4,4,4,7],[36,3,36,5],[37,3,37,5],[38,2,38,5],[20,4,20,7],[21,4,21,7],[33,3,33,5],[34,3,34,5],[35,3,35,5],[30,3,30,5],[31,3,31,5],[32,3,32,5],[20,0,20,3],[21,0,21,3],[28,2,28,5],[29,2,29,5]]}
["Informacja operatora systemu dystrybucyjnego elektroenergetycznego o zmianach mocy zainstalowanej elektrycznej mikroinstalacji przyłączonych do jego sieci"]
["za okres od:",null,null,null,"do:"]
[]
["Nazwa operatora systemu dystrybucyjnego elektroenergetycznego"]
["Siedziba operatora systemu dystrybucyjnego elektroenergetycznego"]
[]
["Lp.","Oznaczenie wytwórcy energii elektrycznej w mikroinstalacji 1)","Lokazlizacja mikroinstalacji","Rodzaj mikroinstalacji przed zmianą 2)","Rodzaj mikroinstalacji po zmianie 2)","Zainstalowana moc elektryczna mikroinstalacji przyłączonej do sieci przed zmianą (kW)","Zainstalowana moc elektryczna mikroinstalacji przyłączonej do sieci po zmianie (kW)","Data zgłoszenia zmiany rodzaju lub zmiany mocyzainstalowanej elektrycznej","OSD"]
[null,1,2,3,4,5,6,7]
[1,null,null,null,null,null,null,null,{"$f":" IF(B9=0, \"\",$F$4)","v":""}]
[2,null,null,null,null,null,null,null,{"$f":" IF(B10=0, \"\",$F$4)","v":""}]
[3,null,null,null,null,null,null,null,""]
[4,null,null,null,null,null,null,null,""]
[5,null,null,null,null,null,null,null,""]
[6,null,null,null,null,null,null,null,""]
[7,null,null,null,null,null,null,null,""]
[8,null,null,null,null,null,null,null,""]
[9,null,null,null,null,null,null,null,""]
[10]
["Razem",null,null,null,null,{"$f":" SUM(F9:F18)","v":0},{"$f":" SUM(G9:G18)","v":0},null,""]
[]
[]
["miejsce i data sporządzenia informacji",null,null,null,"podpis osoby upoważnionej do reprezentowania operatora systemu dystrybucyjnego elektroenergetycznego ze wskazaniem imienia i nazwiska oraz zajmowanego stanowiska"]
[]
[]
[]
[null,null,null,null,null,null,null,"Imię i nazwisko osoby bezpośrednio sporządzającej sprawozdanie:"]
[null,null,null,null,null,null,null,"nr tel. :"]
[null,null,null,null,null,null,null,"e-mail:"]
[null,null,"1) Należy podać imię i nazwisko osoby fizycznej albo nazwę przedsiębiorcy"]
[null,null,"2) Należy podać kod literowy odpowiadający danemu rodzajowi mikroinstalacji wykorzystującej do wytwarzania energii elektrycznej:"]
[null,null,"Kod literowy","Typ źródła OZE"]
[null,null,"WO","hydroenergię"]
[null,null,"WI","energię wiatru"]
[null,null,"GE","energię geotermalną"]
[null,null,"PV","energię promieniowania słonecznego"]
[null,null,"BG","biogaz inny niż biogaz rolniczy"]
[null,null,"BM","biomasę"]
[null,null,"BP","mieszanki biopłynów z innymi paliwami"]